fUSD/lending_fUSD_20250416
["ID","MTS","AMOUNT","RATE_DAILY","PERIOD"]
[358172603,1744815562110,-500.0,0.00053698,120]
[358172604,1744815562150,-500.0,0.00053698,120]
[358172605,1744815562187,-500.0,0.00053698,120]
[358172606,1744815562227,-500.0,0.00053698,120]
[358172607,1744815562267,-585.49,0.00053698,120]
[358172608,1744815562307,-500.0,0.00053698,120]
[358172609,1744815562345,-1136.67,0.00053698,120]
[358172610,1744815562390,-970.9,0.00053698,120]
[358172611,1744815562433,-1332.05,0.00053698,120]
[358172612,1744815562473,-500.0,0.00053698,120]
[358172613,1744815562512,-500.0,0.00053698,120]
[358172614,1744815562551,-670.12,0.00053698,120]
[358172615,1744815562591,-514.72,0.00053698,120]
[358172616,1744815562634,-1653.98,0.00053698,120]
[358172617,1744815562672,-500.0,0.00053698,120]
[358172618,1744815562716,-634.00153505,0.00053698,120]
[358172619,1744815562756,-500.0,0.00053698,120]
[358172620,1744815562795,-500.0,0.00053698,120]
[358172621,1744815562834,-500.0,0.00053698,120]
[358172622,1744815562875,-500.0,0.00053698,120]
[358172623,1744815562911,-500.0,0.00053698,120]
[358172624,1744815562947,-376.03756202,0.00053698,120]
[358172625,1744815562987,-514.96,0.00053698,120]
[358172626,1744815563023,-1299.37,0.00053698,120]
[358172627,1744815563060,-500.0,0.00053698,120]
[358172628,1744815563095,-500.0,0.00053698,120]
[358172629,1744815563132,-500.0,0.00053698,120]
[358172630,1744815563166,-500.0,0.00053698,120]
[358172631,1744815563202,-1137.07,0.00053698,120]
[358172632,1744815563238,-1000.0,0.00053698,35]
[358172633,1744815563275,-1135.67,0.00053698,120]
[358172634,1744815563312,-500.0,0.00053698,120]
[358172635,1744815563351,-746.39,0.00053698,120]
[358172636,1744815563392,-1616.65,0.00053698,120]
[358172637,1744815563431,-777.77,0.00053698,120]
[358172638,1744815563471,-500.0,0.00053698,120]
[358172639,1744815563512,-1832.58,0.00053698,120]
[358172640,1744815563553,-675.56,0.00053698,120]
[358172641,1744815563592,-500.0,0.00053698,120]
[358172642,1744815563631,-500.0,0.00053698,120]
[358172643,1744815563843,-500.0,0.00053698,120]
[358172644,1744815563884,-1014.66,0.00053698,120]
[358172645,1744815563923,-500.0,0.00053726,60]
[358172646,1744815563964,-150.0,0.00053741,120]
[358172647,1744815564006,-524.25,0.00053972,120]
[358172648,1744815564044,-500.0,0.00053972,32]
[358172649,1744815564081,-500.0,0.00053972,120]
[358172650,1744815564118,-500.0,0.00053972,120]
[358172651,1744815564157,-1133.53,0.00053972,120]
[358172652,1744815564197,-1889.13,0.00053972,120]
[358172653,1744815564237,-500.0,0.00053972,120]
[358172654,1744815564276,-500.0,0.00053972,120]
[358172655,1744815564317,-798.31,0.00053972,118]
[358172656,1744815564357,-500.0,0.00053972,120]
[358172657,1744815564396,-500.0,0.00053972,120]
[358172658,1744815564435,-500.0,0.00053972,120]
[358172659,1744815564475,-500.0,0.00053972,120]
[358172660,1744815564513,-1348.27,0.00053972,120]
[358172661,1744815564551,-790.86,0.00053972,120]
[358172662,1744815564590,-500.0,0.00053972,120]
[358172663,1744815564631,-619.72,0.00053972,120]
[358172664,1744815564668,-1016.06,0.00053972,120]
[358172665,1744815564708,-500.0,0.00053972,120]
[358172666,1744815564748,-1311.2,0.00053972,120]
[358172667,1744815564788,-551.59,0.00053972,120]
[358172668,1744815564828,-753.72,0.00053972,120]
[358172669,1744815564866,-500.0,0.00053972,120]
[358172670,1744815564906,-500.0,0.00053972,120]
[358172671,1744815564945,-500.0,0.00053972,120]
[358172672,1744815564987,-500.0,0.00053972,120]
[358172673,1744815565029,-500.0,0.00053972,120]
[358172674,1744815565070,-500.0,0.00053972,120]
[358172675,1744815565107,-246.11238702,0.00053972,120]
[358172676,1744815565145,-500.0,0.00053972,120]
[358172677,1744815565184,-500.0,0.00053972,120]
[358172678,1744815565223,-585.49,0.00053972,120]
[358172679,1744815565263,-500.0,0.00053972,120]
[358172680,1744815565300,-1136.67,0.00053972,120]
[358172681,1744815565342,-970.9,0.00053972,120]
[358172682,1744815565382,-1332.05,0.00053972,120]
[358172683,1744815565421,-500.0,0.00053972,120]
[358172684,1744815565462,-500.0,0.00053972,120]
[358172685,1744815565500,-670.12,0.00053972,120]
[358172686,1744815565539,-1653.98,0.00053972,120]
[358172687,1744815565579,-514.72,0.00053972,120]
[358172688,1744815565617,-500.0,0.00053972,120]
[358172689,1744815565656,-500.0,0.00053972,120]
[358172690,1744815565695,-500.0,0.00053972,120]
[358172691,1744815565734,-500.0,0.00053972,120]
[358172692,1744815565774,-500.0,0.00053972,120]
[358172693,1744815565814,-290.89351373,0.00053972,120]
[358172694,1744815565854,-514.96,0.00053972,120]
[358172695,1744815565894,-1299.37,0.00053972,120]
[358172696,1744815565933,-500.0,0.00053972,120]
[358172697,1744815565972,-500.0,0.00053972,120]
[358172698,1744815566012,-500.0,0.00053972,120]
[358172699,1744815566052,-500.0,0.00053972,120]
[358172700,1744815566092,-1137.07,0.00053972,120]
[358172701,1744815566131,-1000.0,0.00053972,35]
[358172702,1744815566170,-1135.67,0.00053972,120]
[358172703,1744815566211,-500.0,0.00053972,120]
[358172704,1744815566253,-746.39,0.00053972,120]
[358172705,1744815566296,-1616.65,0.00053972,120]
[358172706,1744815566338,-777.77,0.00053972,120]
[358172707,1744815566381,-500.0,0.00053972,120]
[358172708,1744815566421,-1832.58,0.00053972,120]
[358172709,1744815566462,-675.56,0.00053972,120]
[358172710,1744815566501,-500.0,0.00053972,120]
[358172711,1744815566541,-500.0,0.00053972,120]
[358172712,1744815566581,-500.0,0.00053972,120]
[358172713,1744815566623,-1014.66,0.00053972,120]
[358172714,1744815566664,-151.0,0.00053973,120]
[358172715,1744815566706,-524.25,0.00054246,120]
[358172716,1744815566746,-500.0,0.00054246,120]
[358172717,1744815566786,-500.0,0.00054246,120]
[358172718,1744815566825,-1133.53,0.00054246,120]
[358172719,1744815566863,-1889.13,0.00054246,120]
[358172720,1744815566901,-500.0,0.00054246,120]
[358172721,1744815566938,-798.31,0.00054246,118]
[358172722,1744815566977,-500.0,0.00054246,120]
[358172723,1744815567016,-500.0,0.00054246,120]
[358172724,1744815567055,-500.0,0.00054246,120]
[358172725,1744815567094,-163.33103502,0.00054246,120]
[358172726,1744815567132,-500.0,0.00054246,120]
[358172727,1744815567169,-1348.27,0.00054246,120]
[358172728,1744815567207,-790.86,0.00054246,120]
[358172729,1744815567244,-500.0,0.00054246,120]
[358172730,1744815567284,-619.72,0.00054246,120]
[358172731,1744815567323,-1016.06,0.00054246,120]
[358172732,1744815567366,-500.0,0.00054246,120]
[358172733,1744815567407,-1311.2,0.00054246,120]
[358172734,1744815567445,-551.59,0.00054246,120]
[358172735,1744815567484,-753.72,0.00054246,120]
[358172736,1744815567522,-500.0,0.00054246,120]
[358172737,1744815567560,-500.0,0.00054246,120]
[358172738,1744815567599,-500.0,0.00054246,120]
[358172739,1744815567641,-500.0,0.00054246,120]
[358172740,1744815567683,-500.0,0.00054246,120]
[358172741,1744815567728,-500.0,0.00054246,120]
[358172742,1744815567767,-500.0,0.00054246,120]
[358172743,1744815567806,-500.0,0.00054246,120]
[358172744,1744815567845,-585.49,0.00054246,120]
[358172745,1744815567885,-500.0,0.00054246,120]
[358172746,1744815567927,-1136.67,0.00054246,120]
[358172747,1744815567969,-970.9,0.00054246,120]
[358172748,1744815568148,-1332.05,0.00054246,120]
[358172749,1744815568188,-500.0,0.00054246,120]
[358172750,1744815568228,-500.0,0.00054246,120]
[358172751,1744815568270,-670.12,0.00054246,120]
[358172752,1744815568311,-1653.98,0.00054246,120]
[358172753,1744815568353,-514.72,0.00054246,120]
[358172754,1744815568398,-500.0,0.00054246,120]
[358172755,1744815568440,-500.0,0.00054246,120]
[358172756,1744815568481,-500.0,0.00054246,120]
[358172757,1744815568521,-500.0,0.00054246,120]
[358172758,1744815568561,-500.0,0.00054246,120]
[358172759,1744815568601,-514.96,0.00054246,120]
[358172760,1744815568643,-1299.37,0.00054246,120]
[358172761,1744815568690,-500.0,0.00054246,120]
[358172762,1744815568731,-500.0,0.00054246,120]
[358172763,1744815568772,-500.0,0.00054246,120]
[358172764,1744815568812,-500.0,0.00054246,120]
[358172765,1744815568853,-1137.07,0.00054246,120]
[358172766,1744815568893,-1000.0,0.00054246,35]
[358172767,1744815568932,-1135.67,0.00054246,120]
[358172768,1744815568972,-500.0,0.00054246,120]
[358172769,1744815569011,-746.39,0.00054246,120]
[358172770,1744815569049,-1616.65,0.00054246,120]
[358172771,1744815569086,-777.77,0.00054246,120]
[358172772,1744815569126,-500.0,0.00054246,120]
[358172773,1744815569164,-675.56,0.00054246,120]
[358172774,1744815569201,-1832.58,0.00054246,120]
[358172775,1744815569239,-500.0,0.00054246,120]
[358172776,1744815569277,-500.0,0.00054246,120]
[358172777,1744815569315,-500.0,0.00054246,120]
[358172778,1744815569354,-1014.66,0.00054246,120]
[358172779,1744815569394,-500.0,0.00054301,90]
[358172780,1744815569432,-524.25,0.0005452,120]
[358172781,1744815569469,-500.0,0.0005452,34]
[358172782,1744815569507,-500.0,0.0005452,120]
[358172783,1744815569544,-500.0,0.0005452,120]
[358172784,1744815569582,-1133.53,0.0005452,120]
[358172785,1744815569619,-1889.13,0.0005452,120]
[358172786,1744815569656,-500.0,0.0005452,120]
[358172787,1744815569696,-798.31,0.0005452,118]
[358172788,1744815569735,-500.0,0.0005452,120]
[358172789,1744815569775,-500.0,0.0005452,120]
[358172790,1744815569814,-500.0,0.0005452,120]
[358172791,1744815569852,-500.0,0.0005452,120]
[358172792,1744815569890,-1348.27,0.0005452,120]
[358172793,1744815569926,-790.86,0.0005452,120]
[358172794,1744815569963,-500.0,0.0005452,120]
[358172795,1744815570001,-619.72,0.0005452,120]
[358172796,1744815570038,-1016.06,0.0005452,120]
[358172797,1744815570075,-500.0,0.0005452,120]
[358172798,1744815570115,-1311.2,0.0005452,120]
[358172799,1744815570155,-551.59,0.0005452,120]
[358172800,1744815570194,-753.72,0.0005452,120]
[358172801,1744815570230,-500.0,0.0005452,120]
[358172802,1744815570268,-500.0,0.0005452,120]
[358172803,1744815570304,-500.0,0.0005452,120]
[358172804,1744815570342,-500.0,0.0005452,120]
[358172805,1744815570379,-500.0,0.0005452,120]
[358172806,1744815570416,-500.0,0.0005452,120]
[358172807,1744815570454,-500.0,0.0005452,120]
[358172808,1744815570491,-500.0,0.0005452,120]
[358172809,1744815570530,-585.49,0.0005452,120]
[358172810,1744815570569,-500.0,0.0005452,120]
[358172811,1744815570607,-1136.67,0.0005452,120]
[358172812,1744815570646,-970.9,0.0005452,120]
[358172813,1744815570685,-1332.05,0.0005452,120]
[358172814,1744815570727,-500.0,0.0005452,120]
[358172815,1744815570766,-500.0,0.0005452,120]
[358172816,1744815570804,-670.12,0.0005452,120]
[358172817,1744815570841,-1653.98,0.0005452,120]
[358172818,1744815570878,-514.72,0.0005452,120]
[358172819,1744815570915,-500.0,0.0005452,120]
[358172820,1744815570950,-500.0,0.0005452,120]
[358172821,1744815570988,-500.0,0.0005452,120]
[358172822,1744815571024,-500.0,0.0005452,120]
[358172823,1744815571058,-500.0,0.0005452,120]
[358172824,1744815571092,-514.96,0.0005452,120]
[358172825,1744815571127,-1299.37,0.0005452,120]
[358172826,1744815571161,-500.0,0.0005452,120]
[358172827,1744815571195,-166.73482729,0.0005452,120]
[358172828,1744815571229,-500.0,0.0005452,120]
[358172829,1744815571264,-500.0,0.0005452,120]
[358172830,1744815571299,-1137.07,0.0005452,120]
[358172831,1744815571334,-1000.0,0.0005452,35]
[358172832,1744815571372,-1135.67,0.0005452,120]
[358172833,1744815571411,-500.0,0.0005452,120]
[358172834,1744815571449,-746.39,0.0005452,120]
[358172835,1744815571487,-1616.65,0.0005452,120]
[358172836,1744815571526,-777.77,0.0005452,120]
[358172837,1744815571568,-500.0,0.0005452,120]
[358172838,1744815571607,-675.56,0.0005452,120]
[358172839,1744815571647,-1832.58,0.0005452,120]
[358172840,1744815571689,-500.0,0.0005452,120]
[358172841,1744815571729,-245.72897699,0.0005452,120]
[358172842,1744815571769,-500.0,0.0005452,120]
[358172843,1744815571809,-1014.66,0.0005452,120]
[358172844,1744815571848,-500.0,0.00054575,90]
[358172845,1744815571889,-166.0,0.000546,120]
[358172846,1744815571929,-165.0,0.000546,120]
[358172847,1744815571971,-500.0,0.00054794,120]
[358172848,1744815572010,-555.3160319,0.00054794,120]
[358172849,1744815572049,-500.0,0.00054794,120]
[358172850,1744815572088,-1468.09,0.00054794,120]
[358172851,1744815572127,-500.0,0.00054794,120]
[358172852,1744815572310,-500.0,0.00054794,120]
[358172853,1744815572347,-508.63367599,0.00054794,120]
[358172854,1744815572386,-227.0,0.00054794,120]
[358172855,1744815572425,-1198.89,0.00054794,120]
[358172856,1744815572464,-500.0,0.00054794,120]
[358172857,1744815572503,-500.0,0.00054794,120]
[358172858,1744815572540,-804.94,0.00054794,120]
[358172859,1744815572578,-500.0,0.00054794,120]
[358172860,1744815572617,-500.0,0.00054794,120]
[358172861,1744815572654,-500.0,0.00054794,120]
[358172862,1744815572692,-500.0,0.00054794,120]
[358172863,1744815572729,-500.0,0.00054794,120]
[358172864,1744815572768,-500.0,0.00054794,120]
[358172865,1744815572806,-500.0,0.00054794,120]
[358172866,1744815572843,-982.93,0.00054794,120]
[358172867,1744815572884,-500.0,0.00054794,120]
[358172868,1744815572920,-500.0,0.00054794,60]
[358172869,1744815572957,-822.51,0.00054794,120]
[358172870,1744815572995,-500.0,0.00054794,120]
[358172871,1744815573033,-875.93,0.00054794,120]
[358172872,1744815573072,-500.0,0.00054794,120]
[358172873,1744815573111,-349.69579247,0.00054794,120]
[358172874,1744815573152,-412.37385468,0.00054794,120]
[358172875,1744815573191,-500.0,0.00054794,120]
[358172876,1744815573229,-500.0,0.00054794,120]
[358172877,1744815573267,-1346.23,0.00054794,120]
[358172878,1744815573305,-782.45,0.00054794,120]
[358172879,1744815573342,-399.63240011,0.00054794,120]
[358172880,1744815573379,-835.33,0.00054794,120]
[358172881,1744815573416,-529.98889021,0.00054794,120]
[358172882,1744815573452,-500.0,0.00054794,120]
[358172883,1744815573489,-500.0,0.00054794,120]
[358172884,1744815573527,-500.0,0.00054794,120]
[358172885,1744815573564,-500.0,0.00054794,120]
[358172886,1744815573601,-500.0,0.00054794,30]
[358172887,1744815573638,-500.0,0.00054794,120]
[358172888,1744815573674,-500.0,0.00054794,120]
[358172889,1744815573715,-989.02,0.00054794,120]
[358172890,1744815573751,-540.42,0.00054794,120]
[358172891,1744815573792,-500.0,0.00054794,120]
[358172892,1744815573828,-500.0,0.00054794,120]
[358172893,1744815573867,-500.0,0.00054794,120]
[358172894,1744815573903,-500.0,0.00054794,120]
[358172895,1744815573946,-906.51,0.00054794,120]
[358172896,1744815573985,-500.0,0.00054794,120]
[358172897,1744815574021,-500.0,0.00054794,120]
[358172898,1744815574057,-500.0,0.00054794,120]
[358172899,1744815574093,-500.0,0.00054794,120]
[358172900,1744815574130,-500.0,0.00054794,120]
[358172901,1744815574166,-942.61,0.00054794,120]
[358172902,1744815574201,-500.0,0.00054794,120]
[358172903,1744815574237,-500.0,0.00054794,120]
[358172904,1744815574273,-500.0,0.00054794,120]
[358172905,1744815574310,-500.0,0.00054794,120]
[358172906,1744815574347,-500.0,0.00054794,120]
[358172907,1744815574385,-500.0,0.00054794,120]
[358172908,1744815574423,-500.0,0.00054794,120]
[358172909,1744815574459,-1240.3,0.00054794,120]
[358172910,1744815574497,-500.0,0.00054794,120]
[358172911,1744815574534,-500.0,0.00054794,120]
[358172912,1744815574572,-500.0,0.00054794,120]
[358172913,1744815574608,-470.25230363,0.00054794,120]
[358172914,1744815574645,-727.79,0.00054794,120]
[358172915,1744815574684,-500.0,0.00054794,120]
[358172916,1744815574723,-640.87,0.00054794,120]
[358172917,1744815574759,-1335.63,0.00054794,120]
[358172918,1744815574796,-1040.69,0.00054794,120]
[358172919,1744815574833,-1127.15,0.00054794,120]
[358172920,1744815574870,-537.28,0.00054794,120]
[358172921,1744815574908,-1370.04,0.00054794,120]
[358172922,1744815574946,-500.0,0.00054794,120]
[358172923,1744815574986,-500.0,0.00054794,120]
[358172924,1744815575024,-500.0,0.00054794,120]
[358172925,1744815575064,-500.0,0.00054794,120]
[358172926,1744815575101,-500.0,0.00054794,30]
[358172927,1744815575137,-500.0,0.00054794,120]
[358172928,1744815575174,-713.87,0.00054794,120]
[358172929,1744815575210,-500.0,0.00054794,120]
[358172930,1744815575246,-151.831469,0.00054794,120]
[358172931,1744815575283,-500.0,0.00054794,120]
[358172932,1744815575318,-500.0,0.00054794,120]
[358172933,1744815575355,-500.0,0.00054794,120]
[358172934,1744815575392,-760.79,0.00054794,120]
[358172935,1744815575429,-1253.28,0.00054794,120]
[358172936,1744815575466,-500.0,0.00054794,120]
[358172937,1744815575504,-500.0,0.00054794,120]
[358172938,1744815575542,-699.68,0.00054794,120]
[358172939,1744815575580,-851.47,0.00054794,120]
[358172940,1744815575618,-2066.32,0.00054794,120]
[358172941,1744815575654,-776.918619,0.00054794,120]
[358172942,1744815575692,-554.2621616,0.00054794,120]
[358172943,1744815575730,-231.32132075,0.00054794,120]
[358172944,1744815575766,-314.47281214,0.00054794,120]
[358172945,1744815575804,-500.0,0.00054794,120]
[358172946,1744815575840,-290.03940043,0.00054794,120]
[358172947,1744815575879,-1167.17,0.00054794,120]
[358172948,1744815575916,-500.0,0.00054794,120]
[358172949,1744815575953,-843.34,0.00054794,120]
[358172950,1744815575992,-164.189452,0.00054794,120]
[358172951,1744815576029,-500.0,0.00054794,120]
[358172952,1744815576064,-500.0,0.00054794,120]
[358172953,1744815576100,-500.0,0.00054794,120]
[358172954,1744815576137,-1000.01,0.00054794,120]
[358172955,1744815576175,-500.0,0.00054794,120]
[358172956,1744815576369,-256.21344419,0.00054794,120]
[358172957,1744815576408,-538.45,0.00054794,120]
[358172958,1744815576448,-1339.79,0.00054794,120]
[358172959,1744815576487,-1104.97,0.00054794,120]
[358172960,1744815576526,-1000.0,0.00054794,120]
[358172961,1744815576566,-500.0,0.00054794,120]
[358172962,1744815576606,-500.0,0.00054794,120]
[358172963,1744815576646,-635.45,0.00054794,120]
[358172964,1744815576689,-500.0,0.00054794,120]
[358172965,1744815576731,-641.93,0.00054794,120]
[358172966,1744815576769,-861.11,0.00054794,120]
[358172967,1744815576809,-500.0,0.00054794,120]
[358172968,1744815576849,-500.0,0.00054794,120]
[358172969,1744815576891,-656.9,0.00054794,120]
[358172970,1744815576932,-781.78,0.00054794,120]
[358172971,1744815576972,-874.27,0.00054794,120]
[358172972,1744815577012,-500.0,0.00054794,120]
[358172973,1744815577050,-500.0,0.00054794,120]
[358172974,1744815577088,-1191.75,0.00054794,120]
[358172975,1744815577128,-1047.24,0.00054794,120]
[358172976,1744815577167,-500.0,0.00054794,120]
[358172977,1744815577205,-524.25,0.00054794,120]
[358172978,1744815577244,-500.0,0.00054794,120]
[358172979,1744815577283,-500.0,0.00054794,120]
[358172980,1744815577322,-1133.53,0.00054794,120]
[358172981,1744815577361,-500.0,0.00054794,120]
[358172982,1744815577400,-1889.13,0.00054794,120]
[358172983,1744815577438,-798.31,0.00054794,118]
[358172984,1744815577476,-500.0,0.00054794,120]
[358172985,1744815577514,-500.0,0.00054794,120]
[358172986,1744815577552,-500.0,0.00054794,120]
[358172987,1744815577589,-500.0,0.00054794,120]
[358172988,1744815577628,-1348.27,0.00054794,120]
[358172989,1744815577665,-790.86,0.00054794,120]
[358172990,1744815577707,-500.0,0.00054794,120]
[358172991,1744815577745,-619.72,0.00054794,120]
[358172992,1744815577784,-1000.0,0.00054794,120]
[358172993,1744815577823,-1000.0,0.00054794,120]
[358172994,1744815577861,-1016.06,0.00054794,120]
[358172995,1744815577900,-1000.0,0.00054794,120]
[358172996,1744815577938,-1000.0,0.00054794,120]
[358172997,1744815577977,-1000.0,0.00054794,120]
[358172998,1744815578015,-1000.0,0.00054794,120]
[358172999,1744815578052,-1000.0,0.00054794,120]
[358173000,1744815578088,-1000.0,0.00054794,120]
[358173001,1744815578123,-1000.0,0.00054794,120]
[358173002,1744815578159,-1000.0,0.00054794,120]
[358173003,1744815578195,-1000.0,0.00054794,120]
[358173004,1744815578231,-500.0,0.00054794,120]
[358173005,1744815578267,-1311.2,0.00054794,120]
[358173006,1744815578303,-551.59,0.00054794,120]
[358173007,1744815578339,-753.72,0.00054794,120]
[358173008,1744815578376,-500.0,0.00054794,120]
[358173009,1744815578418,-500.0,0.00054794,120]
[358173010,1744815578457,-500.0,0.00054794,120]
[358173011,1744815578496,-232.20065645,0.00054794,120]
[358173012,1744815578535,-500.0,0.00054794,120]
[358173013,1744815578573,-500.0,0.00054794,120]
[358173014,1744815578612,-500.0,0.00054794,120]
[358173015,1744815578650,-500.0,0.00054794,120]
[358173016,1744815578691,-585.49,0.00054794,120]
[358173017,1744815578729,-500.0,0.00054794,120]
[358173018,1744815578770,-520.14527959,0.00054794,120]
[358173019,1744815578809,-500.0,0.00054794,120]
[358173020,1744815578848,-1136.67,0.00054794,120]
[358173021,1744815578888,-970.9,0.00054794,120]
[358173022,1744815578927,-1332.05,0.00054794,120]
[358173023,1744815578968,-500.0,0.00054794,120]
[358173024,1744815579007,-500.0,0.00054794,120]
[358173025,1744815579050,-670.12,0.00054794,120]
[358173026,1744815579090,-1653.98,0.00054794,120]
[358173027,1744815579128,-514.72,0.00054794,120]
[358173028,1744815579167,-500.0,0.00054794,120]
[358173029,1744815579206,-500.0,0.00054794,120]
[358173030,1744815579245,-500.0,0.00054794,120]
[358173031,1744815579283,-500.0,0.00054794,120]
[358173032,1744815579321,-500.0,0.00054794,120]
[358173033,1744815579359,-514.96,0.00054794,120]
[358173034,1744815579396,-1299.37,0.00054794,120]
[358173035,1744815579434,-500.0,0.00054794,120]
[358173036,1744815579472,-500.0,0.00054794,120]
[358173037,1744815579511,-500.0,0.00054794,120]
[358173038,1744815579551,-1137.07,0.00054794,120]
[358173039,1744815579593,-1000.0,0.00054794,35]
[358173040,1744815579632,-1135.67,0.00054794,120]
[358173041,1744815579669,-500.0,0.00054794,120]
[358173042,1744815579709,-500.0,0.00054794,120]
[358173043,1744815579746,-500.0,0.00054794,120]
[358173044,1744815579782,-500.0,0.00054794,120]
[358173045,1744815579818,-500.0,0.00054794,120]
[358173046,1744815579854,-500.0,0.00054794,120]
[358173047,1744815579893,-500.0,0.00054794,120]
[358173048,1744815579929,-500.0,0.00054794,120]
[358173049,1744815579971,-500.0,0.00054794,120]
[358173050,1744815580006,-500.0,0.00054794,120]
[358173051,1744815580040,-500.0,0.00054794,120]
[358173052,1744815580088,-500.0,0.00054794,120]
[358173053,1744815580130,-746.39,0.00054794,120]
[358173054,1744815580170,-1616.65,0.00054794,120]
[358173055,1744815580231,-777.77,0.00054794,120]
[358173056,1744815580281,-500.0,0.00054794,120]
[358173057,1744815580330,-675.56,0.00054794,120]
[358173058,1744815580380,-1832.58,0.00054794,120]
[358173059,1744815580426,-500.0,0.00054794,120]
[358173060,1744815580470,-500.0,0.00054794,120]
[358173061,1744815580513,-1014.66,0.00054794,120]
[358173062,1744815580558,-500.0,0.00054849,120]
[358173063,1744815580603,-453.94676874,0.00054891,120]
[358173064,1744815580647,-1642.30286497,0.00054895,120]
[358173065,1744815580694,-7482.44969957,0.00054897,120]
[358173066,1744815580744,-1213.4956177,0.00054905,120]
[358173067,1744815580788,-453.94676874,0.0005491,120]
[358173068,1744815580833,-7482.44969957,0.00054911,120]
[358173069,1744815580878,-943.78233278,0.00054913,120]
[358173070,1744815580923,-134606.70653183,0.00054913,120]
[358173071,1744815580971,-14896.63793498,0.00054915,120]
[358173072,1744815581015,-551.19587132,0.00054919,120]
[358173073,1744815581065,-134606.70653183,0.00054919,120]
[358173074,1744815581111,-551.19587132,0.00054928,120]
[358173075,1744815581156,-3365.56722619,0.00054931,120]
[358173076,1744815581196,-3188.73223365,0.00054933,120]
[358173077,1744815581236,-1213.4956177,0.00054939,120]
[358173078,1744815581281,-453.94676874,0.00054944,120]
[358173079,1744815581321,-1642.30286497,0.0005495,120]
[358173080,1744815581361,-943.78233278,0.00054953,120]
[358173081,1744815581401,-1213.4956177,0.00054955,120]
[358173082,1744815581447,-3365.56722619,0.00054957,120]
[358173083,1744815581490,-151.0,0.00054959,120]
[358173084,1744815581530,-2766.4571897,0.0005496,120]
[358173085,1744815581572,-134606.70653183,0.00054961,120]
[358173086,1744815581613,-14896.63793498,0.00054961,120]
[358173087,1744815581658,-7482.44969957,0.00054972,120]
[358173088,1744815581701,-943.78233278,0.00054972,120]
[358173089,1744815581750,-551.19587132,0.00054975,120]
[358173090,1744815581797,-3365.56722619,0.00054975,120]
[358173091,1744815581841,-3188.73223365,0.0005498,120]
[358173092,1744815581886,-3188.73223365,0.00054983,120]
[358173093,1744815581930,-14896.63793498,0.00054989,120]
[358173094,1744815581973,-1642.30286497,0.00054996,120]
[358173095,1744815582016,-2766.4571897,0.00054996,120]
[358173096,1744815582058,-2766.4571897,0.00054999,120]
[358173097,1744815582097,-209.0,0.00055,30]
[358173098,1744815582136,-210.0,0.00055,30]
[358173099,1744815582175,-1010.21,0.00055,120]
[358173100,1744815582214,-159.0,0.00055,70]
[358173101,1744815582253,-500.0,0.00055068,120]
[358173102,1744815582294,-500.0,0.00055068,120]